[Event "*** Titled Tuesday Blitz"]
[Site "Chess.com"]
[Date "2020.05.05"]
[Round "1"]
[White "praveenb2002"]
[Black "grunbergmihai"]
[Result "1-0"]
[WhiteElo "2736"]
[BlackElo "2383"]
[TimeControl "180+1"]
[EndTime "10:09:24 PDT"]
[Termination "praveenb2002 won by resignation"]

1. f3 {[%clk 0:03:00.9]} 1... d5 {[%clk 0:02:59.2]} 2. Kf2 {[%clk 0:03:01.3]}
2... e5 {[%clk 0:02:58.2]} 3. Kg3 {[%clk 0:03:00.7]} 3... Be7 {[%clk 0:02:51.4]}
4. Kf2 {[%clk 0:02:59.4]} 4... c5 {[%clk 0:02:50]} 5. e3 {[%clk 0:02:59.3]} 5...
Nc6 {[%clk 0:02:49.8]} 6. Ne2 {[%clk 0:02:59.1]} 6... f5 {[%clk 0:02:47.4]} 7.
g3 {[%clk 0:02:59.2]} 7... e4 {[%clk 0:02:45.6]} 8. Bg2 {[%clk 0:02:55.2]} 8...
Nf6 {[%clk 0:02:44.8]} 9. d4 {[%clk 0:02:54.7]} 9... O-O {[%clk 0:02:39.8]} 10.
Rf1 {[%clk 0:02:54.2]} 10... exf3 {[%clk 0:02:32.3]} 11. Bxf3 {[%clk 0:02:54]}
11... Ne4+ {[%clk 0:02:29.6]} 12. Kg1 {[%clk 0:02:49.8]} 12... Qb6 {[%clk
0:02:24.6]} 13. Nbc3 {[%clk 0:02:41.9]} 13... Be6 {[%clk 0:02:17.9]} 14. Nf4
{[%clk 0:02:41.8]} 14... cxd4 {[%clk 0:02:07.5]} 15. Nxe6 {[%clk 0:02:31.8]}
15... dxc3 {[%clk 0:02:03.1]} 16. Nxf8 {[%clk 0:02:31.6]} 16... cxb2 {[%clk
0:02:00.6]} 17. Qxd5+ {[%clk 0:02:28.2]} 17... Kxf8 {[%clk 0:01:55.3]} 18. Bxb2
{[%clk 0:02:23.1]} 18... Qxe3+ {[%clk 0:01:39.8]} 19. Kg2 {[%clk 0:02:22.1]}
19... Qd2+ {[%clk 0:01:30.3]} 20. Qxd2 {[%clk 0:02:21.5]} 20... Nxd2 {[%clk
0:01:30.1]} 21. Bxc6 {[%clk 0:02:21.6]} 21... Nxf1 {[%clk 0:01:26.8]} 22. Bxb7
{[%clk 0:02:04.5]} 22... Rb8 {[%clk 0:01:25.9]} 23. Rxf1 {[%clk 0:02:03.1]}
23... g6 {[%clk 0:01:15.9]} 24. Bd5 {[%clk 0:01:39.3]} 24... Rxb2 {[%clk
0:01:13.9]} 25. Bb3 {[%clk 0:01:39.7]} 25... a5 {[%clk 0:01:12.3]} 26. a4 {[%clk
0:01:34.8]} 26... Kg7 {[%clk 0:01:10.4]} 27. g4 {[%clk 0:01:33.5]} 27... Kf6
{[%clk 0:01:07.1]} 28. gxf5 {[%clk 0:01:33.4]} 28... gxf5 {[%clk 0:01:07.2]} 29.
Kf3 {[%clk 0:01:33.7]} 29... Bd6 {[%clk 0:01:06.5]} 30. h3 {[%clk 0:01:33.3]}
30... f4 {[%clk 0:01:05.2]} 31. Ke4 {[%clk 0:01:33.2]} 31... Kg5 {[%clk
0:01:00.1]} 32. Rd1 {[%clk 0:01:30.7]} 32... Bb4 {[%clk 0:00:53.9]} 33. Kf3
{[%clk 0:01:22]} 33... Kh4 {[%clk 0:00:42.3]} 34. Kg2 {[%clk 0:00:49.4]} 34...
h5 {[%clk 0:00:36]} 35. Kf3 {[%clk 0:00:48.3]} 35... Bc3 {[%clk 0:00:30.8]} 36.
Kxf4 {[%clk 0:00:46.1]} 36... Bb4 {[%clk 0:00:27.5]} 37. Kf3 {[%clk 0:00:45.1]}
37... Bc3 {[%clk 0:00:27.1]} 38. Kg2 {[%clk 0:00:45.2]} 38... Kg5 {[%clk
0:00:25.7]} 39. Kg3 {[%clk 0:00:43.1]} 39... h4+ {[%clk 0:00:25.4]} 40. Kf3
{[%clk 0:00:43.2]} 40... Bf6 {[%clk 0:00:24.7]} 41. Ke4 {[%clk 0:00:42.8]} 41...
Kg6 {[%clk 0:00:23.5]} 42. Rg1+ {[%clk 0:00:42.6]} 42... Kh6 {[%clk 0:00:23.6]}
43. Kf5 {[%clk 0:00:42.7]} 43... Bd4 {[%clk 0:00:22.4]} 44. Rd1 {[%clk
0:00:40.4]} 44... Bf2 {[%clk 0:00:21]} 45. Ke4 {[%clk 0:00:34.4]} 45... Bg3
{[%clk 0:00:19.9]} 46. Kd4 {[%clk 0:00:33.2]} 46... Kg5 {[%clk 0:00:19.7]} 47.
Rf1 {[%clk 0:00:32.8]} 47... Kg6 {[%clk 0:00:17]} 48. Kc4 {[%clk 0:00:29.8]}
48... Bd6 {[%clk 0:00:15.5]} 49. Re1 {[%clk 0:00:25.2]} 49... Bb4 {[%clk
0:00:15.1]} 50. Rg1+ {[%clk 0:00:25.4]} 50... Kf5 {[%clk 0:00:15]} 51. Kd3
{[%clk 0:00:25.1]} 51... Kf4 {[%clk 0:00:14.8]} 52. Ke2 {[%clk 0:00:24.3]} 52...
Kf5 {[%clk 0:00:14.2]} 53. Kf3 {[%clk 0:00:24.6]} 53... Be7 {[%clk 0:00:13.2]}
54. Rd1 {[%clk 0:00:24.2]} 54... Bb4 {[%clk 0:00:12.5]} 55. Ke3 {[%clk
0:00:21.1]} 55... Bc5+ {[%clk 0:00:10.6]} 56. Kd3 {[%clk 0:00:20.3]} 56... Bb4
{[%clk 0:00:09.9]} 57. Rf1+ {[%clk 0:00:20.1]} 57... Ke5 {[%clk 0:00:09.5]} 58.
Ke3 {[%clk 0:00:20.3]} 58... Bc5+ {[%clk 0:00:09.1]} 59. Kf3 {[%clk 0:00:20.8]}
59... Bb4 {[%clk 0:00:08.9]} 60. Kg4 {[%clk 0:00:20.8]} 60... Be7 {[%clk
0:00:08.5]} 61. Re1+ {[%clk 0:00:20.6]} 61... Kd6 {[%clk 0:00:08.4]} 62. Kf5
{[%clk 0:00:20.3]} 62... Kd7 {[%clk 0:00:06.6]} 63. Rd1+ {[%clk 0:00:20]} 63...
Ke8 {[%clk 0:00:06.2]} 64. Ke6 {[%clk 0:00:20.4]} 64... Bb4 {[%clk 0:00:05.8]}
65. Rg1 {[%clk 0:00:19.6]} 65... Kd8 {[%clk 0:00:05.6]} 66. Kd5 {[%clk
0:00:18.7]} 66... Ke7 {[%clk 0:00:05.2]} 67. Ke5 {[%clk 0:00:18.7]} 67... Bc3+
{[%clk 0:00:04.9]} 68. Kf5 {[%clk 0:00:17.4]} 68... Bb4 {[%clk 0:00:05.8]} 69.
Rf1 {[%clk 0:00:16.5]} 69... Bc3 {[%clk 0:00:05.6]} 70. Ke4 {[%clk 0:00:16.8]}
70... Bb4 {[%clk 0:00:05.6]} 71. Kf4 {[%clk 0:00:16.5]} 71... Kd6 {[%clk
0:00:05.5]} 72. Kg4 {[%clk 0:00:16.5]} 72... Ke5 {[%clk 0:00:05.2]} 73. Kxh4
{[%clk 0:00:16.8]} 73... Ke4 {[%clk 0:00:04.7]} 74. Kg4 {[%clk 0:00:16.6]} 74...
Ke3 {[%clk 0:00:05.6]} 75. h4 {[%clk 0:00:16.4]} 75... Kd2 {[%clk 0:00:06.5]}
76. h5 {[%clk 0:00:16.1]} 76... Rxb3 {[%clk 0:00:06.3]} 77. cxb3 {[%clk
0:00:16.1]} 77... Kc3 {[%clk 0:00:05.6]} 78. Rf3+ {[%clk 0:00:16.4]} 78... Kb2
{[%clk 0:00:04.8]} 79. h6 {[%clk 0:00:16.9]} 1-0

[Event "*** Titled Tuesday Blitz"]
[Site "Chess.com"]
[Date "2020.05.05"]
[Round "1"]
[White "Bodnar_Mykola"]
[Black "obliviate12"]
[Result "1-0"]
[WhiteElo "2432"]
[BlackElo "2787"]
[TimeControl "180+1"]
[EndTime "10:09:32 PDT"]
[Termination "Bodnar_Mykola won by checkmate"]

1. d4 {[%clk 0:02:59]} 1... Nf6 {[%clk 0:02:57.7]} 2. c4 {[%clk 0:02:58.1]} 2...
e6 {[%clk 0:02:57.3]} 3. Nf3 {[%clk 0:02:56.6]} 3... d5 {[%clk 0:02:56.9]} 4.
Nc3 {[%clk 0:02:54.9]} 4... Bb4 {[%clk 0:02:56]} 5. Qa4+ {[%clk 0:02:53.9]} 5...
Nc6 {[%clk 0:02:55.7]} 6. e3 {[%clk 0:02:54.4]} 6... O-O {[%clk 0:02:55.6]} 7.
Bd2 {[%clk 0:02:46.1]} 7... dxc4 {[%clk 0:02:53.8]} 8. Bxc4 {[%clk 0:02:44.2]}
8... Bd6 {[%clk 0:02:49.8]} 9. e4 {[%clk 0:02:38.2]} 9... e5 {[%clk 0:02:34.8]}
10. d5 {[%clk 0:02:33.5]} 10... Nd4 {[%clk 0:02:27.7]} 11. Qd1 {[%clk
0:02:06.7]} 11... Bg4 {[%clk 0:01:45.9]} 12. Be2 {[%clk 0:02:05.8]} 12... Nxe2
{[%clk 0:01:45.6]} 13. Qxe2 {[%clk 0:02:04.7]} 13... a6 {[%clk 0:01:44.8]} 14.
h3 {[%clk 0:02:03.9]} 14... Bd7 {[%clk 0:01:40]} 15. O-O {[%clk 0:01:56.3]}
15... h6 {[%clk 0:01:39.6]} 16. a4 {[%clk 0:01:43.5]} 16... Qe7 {[%clk
0:01:36.4]} 17. Be3 {[%clk 0:01:40.1]} 17... Nh5 {[%clk 0:01:29.2]} 18. Nd2
{[%clk 0:01:31.2]} 18... Qh4 {[%clk 0:01:26.2]} 19. Nc4 {[%clk 0:01:14.4]} 19...
f5 {[%clk 0:01:20.9]} 20. exf5 {[%clk 0:01:08.4]} 20... Bxf5 {[%clk 0:01:17.9]}
21. Nxd6 {[%clk 0:01:06.1]} 21... cxd6 {[%clk 0:01:17.4]} 22. g4 {[%clk
0:00:58.2]} 22... Bd7 {[%clk 0:00:41.2]} 23. gxh5 {[%clk 0:00:55.7]} 23... Bxh3
{[%clk 0:00:41]} 24. f3 {[%clk 0:00:45.9]} 24... Rf5 {[%clk 0:00:24.4]} 25. Rf2
{[%clk 0:00:41.5]} 25... Rxh5 {[%clk 0:00:22.1]} 26. Rh2 {[%clk 0:00:38.7]}
26... Qg3+ {[%clk 0:00:18.7]} 27. Kh1 {[%clk 0:00:37.5]} 27... Rf8 {[%clk
0:00:15.7]} 28. Ne4 {[%clk 0:00:33.1]} 28... Qxf3+ {[%clk 0:00:13.2]} 29. Qxf3
{[%clk 0:00:32.8]} 29... Rxf3 {[%clk 0:00:14.1]} 30. Re1 {[%clk 0:00:31.4]}
30... Rhf5 {[%clk 0:00:11.2]} 31. Nf2 {[%clk 0:00:27.8]} 31... Rh5 {[%clk
0:00:06.3]} 32. Rxh3 {[%clk 0:00:24.7]} 32... Rhxh3+ {[%clk 0:00:07.2]} 33. Nxh3
{[%clk 0:00:25.3]} 33... Rxh3+ {[%clk 0:00:07.8]} 34. Kg2 {[%clk 0:00:25.9]}
34... Rh4 {[%clk 0:00:08.6]} 35. Rc1 {[%clk 0:00:19.5]} 35... Rxa4 {[%clk
0:00:07.7]} 36. Rc7 {[%clk 0:00:18]} 36... Rb4 {[%clk 0:00:07.1]} 37. Kf3 {[%clk
0:00:17.3]} 37... Rxb2 {[%clk 0:00:06]} 38. Rd7 {[%clk 0:00:17.2]} 38... Rb5
{[%clk 0:00:04.9]} 39. Rxd6 {[%clk 0:00:17]} 39... Kf7 {[%clk 0:00:05.2]} 40.
Rd7+ {[%clk 0:00:16.9]} 40... Ke8 {[%clk 0:00:05]} 41. Rxg7 {[%clk 0:00:15.3]}
41... Rxd5 {[%clk 0:00:04.3]} 42. Rxb7 {[%clk 0:00:15.2]} 42... Rd7 {[%clk
0:00:04.5]} 43. Rb6 {[%clk 0:00:14]} 43... Kf7 {[%clk 0:00:04.7]} 44. Rxa6
{[%clk 0:00:13.8]} 44... e4+ {[%clk 0:00:04]} 45. Kxe4 {[%clk 0:00:13.1]} 45...
Re7+ {[%clk 0:00:04.9]} 46. Kf3 {[%clk 0:00:12.8]} 46... Rd7 {[%clk 0:00:05.7]}
47. Bf4 {[%clk 0:00:12.8]} 47... Re7 {[%clk 0:00:05.4]} 48. Kg4 {[%clk
0:00:12.7]} 48... Re6 {[%clk 0:00:05.5]} 49. Ra7+ {[%clk 0:00:12.2]} 49... Kg6
{[%clk 0:00:06.2]} 50. Ra8 {[%clk 0:00:11.6]} 50... h5+ {[%clk 0:00:07.1]} 51.
Kf3 {[%clk 0:00:10.5]} 51... Kf5 {[%clk 0:00:08]} 52. Rf8+ {[%clk 0:00:10.2]}
52... Rf6 {[%clk 0:00:07.6]} 53. Rh8 {[%clk 0:00:10.1]} 53... Kg6 {[%clk
0:00:08]} 54. Rh6+ {[%clk 0:00:10.1]} 54... Kg7 {[%clk 0:00:07.9]} 55. Rxh5
{[%clk 0:00:10.4]} 55... Kg6 {[%clk 0:00:07.2]} 56. Rb5 {[%clk 0:00:10.8]} 56...
Re6 {[%clk 0:00:07]} 57. Kg4 {[%clk 0:00:11]} 57... Kf7 {[%clk 0:00:07.3]} 58.
Kf5 {[%clk 0:00:10.4]} 58... Rf6+ {[%clk 0:00:07.2]} 59. Kg5 {[%clk 0:00:10.7]}
59... Rg6+ {[%clk 0:00:07.2]} 60. Kf5 {[%clk 0:00:10.7]} 60... Rf6+ {[%clk
0:00:07.3]} 61. Ke5 {[%clk 0:00:11.2]} 61... Re6+ {[%clk 0:00:07.6]} 62. Kd5
{[%clk 0:00:11.7]} 62... Re2 {[%clk 0:00:05.4]} 63. Be5 {[%clk 0:00:11.7]} 63...
Kg6 {[%clk 0:00:05.6]} 64. Rb1 {[%clk 0:00:10.5]} 64... Kf5 {[%clk 0:00:05.1]}
65. Rf1+ {[%clk 0:00:10.2]} 65... Kg5 {[%clk 0:00:06]} 66. Ke6 {[%clk
0:00:10.6]} 66... Kh5 {[%clk 0:00:05.6]} 67. Rg1 {[%clk 0:00:10.3]} 67... Rf2
{[%clk 0:00:05.2]} 68. Bf6 {[%clk 0:00:09.6]} 68... Kh6 {[%clk 0:00:03.9]} 69.
Rg4 {[%clk 0:00:07.1]} 69... Kh5 {[%clk 0:00:04.8]} 70. Rg5+ {[%clk 0:00:06.6]}
70... Kh6 {[%clk 0:00:04.6]} 71. Kf7 {[%clk 0:00:07]} 71... Rf1 {[%clk
0:00:03.8]} 72. Rg4 {[%clk 0:00:06.6]} 72... Rf5 {[%clk 0:00:03.4]} 73. Ke6
{[%clk 0:00:03.2]} 73... Rf3 {[%clk 0:00:03.2]} 74. Kf7 {[%clk 0:00:02.5]} 74...
Rf5 {[%clk 0:00:03.3]} 75. Rc4 {[%clk 0:00:02.8]} 75... Kh5 {[%clk 0:00:03]} 76.
Rh4# {[%clk 0:00:01.8]} 1-0

[Event "*** Titled Tuesday Blitz"]
[Site "Chess.com"]
[Date "2020.05.05"]
[Round "1"]
[White "Rsnr"]
[Black "woodhy"]
[Result "1/2-1/2"]
[WhiteElo "2710"]
[BlackElo "2381"]
[TimeControl "180+1"]
[EndTime "10:09:39 PDT"]
[Termination "Game drawn by repetition"]

1. d4 {[%clk 0:03:00.9]} 1... d5 {[%clk 0:02:50.2]} 2. c4 {[%clk 0:02:59.6]}
2... c6 {[%clk 0:02:49]} 3. Nf3 {[%clk 0:02:59.9]} 3... Nf6 {[%clk 0:02:48.9]}
4. Nc3 {[%clk 0:03:00.6]} 4... g6 {[%clk 0:02:48.9]} 5. Bf4 {[%clk 0:02:59.3]}
5... Bg7 {[%clk 0:02:48.7]} 6. e3 {[%clk 0:03:00]} 6... O-O {[%clk 0:02:41]} 7.
h3 {[%clk 0:03:00.5]} 7... dxc4 {[%clk 0:02:41.1]} 8. Bxc4 {[%clk 0:03:00.3]}
8... b5 {[%clk 0:02:41.4]} 9. Bd3 {[%clk 0:02:59.7]} 9... Nd5 {[%clk 0:02:41]}
10. Bg3 {[%clk 0:02:55]} 10... b4 {[%clk 0:02:38.8]} 11. Ne4 {[%clk 0:02:54.6]}
11... Nd7 {[%clk 0:02:37]} 12. O-O {[%clk 0:02:54.4]} 12... a5 {[%clk 0:02:37]}
13. Rc1 {[%clk 0:02:54]} 13... Qb6 {[%clk 0:02:36.1]} 14. Qc2 {[%clk 0:02:52.8]}
14... Ba6 {[%clk 0:02:34.1]} 15. Bxa6 {[%clk 0:02:48.7]} 15... Rxa6 {[%clk
0:02:35]} 16. Nc5 {[%clk 0:02:32.5]} 16... Nxc5 {[%clk 0:02:32.3]} 17. Qxc5
{[%clk 0:02:33.4]} 17... Re8 {[%clk 0:02:19]} 18. Qxb6 {[%clk 0:02:33.2]} 18...
Rxb6 {[%clk 0:02:18.5]} 19. Rc5 {[%clk 0:02:33.7]} 19... a4 {[%clk 0:02:15.9]}
20. Rfc1 {[%clk 0:02:33.3]} 20... a3 {[%clk 0:02:15.4]} 21. bxa3 {[%clk
0:02:26.5]} 21... bxa3 {[%clk 0:02:14.2]} 22. Ra5 {[%clk 0:02:23.2]} 22... Bh6
{[%clk 0:02:00.9]} 23. Rxa3 {[%clk 0:02:22.2]} 23... Rb2 {[%clk 0:01:54.8]} 24.
Ne5 {[%clk 0:02:19.1]} 24... Nb4 {[%clk 0:01:45.9]} 25. Nxc6 {[%clk 0:02:06.7]}
25... Nxa2 {[%clk 0:01:37.7]} 26. Ra1 {[%clk 0:02:05.9]} 26... Nb4 {[%clk
0:01:34.5]} 27. Ne5 {[%clk 0:01:37]} 27... Nc2 {[%clk 0:01:13.7]} 28. R3a2
{[%clk 0:01:12.3]} 28... Reb8 {[%clk 0:00:55.7]} 29. Rxb2 {[%clk 0:01:09.7]}
29... Rxb2 {[%clk 0:00:56.5]} 30. Ra8+ {[%clk 0:01:01.4]} 30... Kg7 {[%clk
0:00:50.7]} 31. Nc4 {[%clk 0:00:38.1]} 31... Rb4 {[%clk 0:00:40.8]} 32. Rc8
{[%clk 0:00:38.1]} 32... Bg5 {[%clk 0:00:32.9]} 33. Rc7 {[%clk 0:00:29.7]} 33...
h5 {[%clk 0:00:30.8]} 34. Be5+ {[%clk 0:00:26.4]} 34... Bf6 {[%clk 0:00:25.5]}
35. g4 {[%clk 0:00:23.5]} 35... hxg4 {[%clk 0:00:24.9]} 36. hxg4 {[%clk
0:00:24.4]} 36... Ne1 {[%clk 0:00:19.6]} 37. Bxf6+ {[%clk 0:00:16.4]} 37... Kxf6
{[%clk 0:00:18.5]} 38. Kf1 {[%clk 0:00:16.1]} 38... Rb1 {[%clk 0:00:17.7]} 39.
Ke2 {[%clk 0:00:15.4]} 39... Ng2 {[%clk 0:00:16.7]} 40. Ne5 {[%clk 0:00:15.1]}
40... Rb2+ {[%clk 0:00:16.5]} 41. Kf3 {[%clk 0:00:15]} 41... Nh4+ {[%clk
0:00:16.8]} 42. Kg3 {[%clk 0:00:15.7]} 42... g5 {[%clk 0:00:17]} 43. Rc6+ {[%clk
0:00:15.2]} 43... Kg7 {[%clk 0:00:17.4]} 44. Rc7 {[%clk 0:00:10.6]} 44... Kf6
{[%clk 0:00:17.7]} 45. Nd3 {[%clk 0:00:11]} 45... Rb1 {[%clk 0:00:17.5]} 46.
Rc6+ {[%clk 0:00:11.4]} 46... Kg7 {[%clk 0:00:16.8]} 47. Rc1 {[%clk 0:00:12.1]}
47... Rb3 {[%clk 0:00:15.3]} 48. Ne5 {[%clk 0:00:12.5]} 48... f6 {[%clk
0:00:15.4]} 49. Nc6 {[%clk 0:00:10.6]} 49... Kf7 {[%clk 0:00:15.4]} 50. Nd8+
{[%clk 0:00:11.1]} 50... Ke8 {[%clk 0:00:15.5]} 51. Ne6 {[%clk 0:00:12]} 51...
Kf7 {[%clk 0:00:16.4]} 52. Rc6 {[%clk 0:00:11.6]} 52... Rb1 {[%clk 0:00:15.8]}
53. f4 {[%clk 0:00:06.5]} 53... Rg1+ {[%clk 0:00:14.5]} 54. Kf2 {[%clk
0:00:07.1]} 54... Rxg4 {[%clk 0:00:14.6]} 55. fxg5 {[%clk 0:00:07.6]} 55... fxg5
{[%clk 0:00:14.2]} 56. Nc5 {[%clk 0:00:07.6]} 56... Rg2+ {[%clk 0:00:14.2]} 57.
Kf1 {[%clk 0:00:07.5]} 57... Ra2 {[%clk 0:00:15.1]} 58. Nd3 {[%clk 0:00:07.7]}
58... Nf3 {[%clk 0:00:15]} 59. Rc5 {[%clk 0:00:05.3]} 59... g4 {[%clk
0:00:14.4]} 60. Ne5+ {[%clk 0:00:02.5]} 60... Nxe5 {[%clk 0:00:13.1]} 61. Rxe5
{[%clk 0:00:03.4]} 61... Kf6 {[%clk 0:00:13.6]} 62. e4 {[%clk 0:00:03.6]} 62...
g3 {[%clk 0:00:13.8]} 63. Rf5+ {[%clk 0:00:04.1]} 63... Kg6 {[%clk 0:00:13.6]}
64. Kg1 {[%clk 0:00:05]} 64... Ra4 {[%clk 0:00:12.6]} 65. Rd5 {[%clk 0:00:04.7]}
65... e6 {[%clk 0:00:11.8]} 66. Rd6 {[%clk 0:00:04.8]} 66... Kf7 {[%clk
0:00:11.9]} 67. Kg2 {[%clk 0:00:05.1]} 67... Ra3 {[%clk 0:00:12.4]} 68. Rd8
{[%clk 0:00:04.4]} 68... Re3 {[%clk 0:00:11.7]} 69. e5 {[%clk 0:00:04]} 69...
Ke7 {[%clk 0:00:12]} 70. Rd6 {[%clk 0:00:04.9]} 70... Rd3 {[%clk 0:00:11.8]} 71.
Kh3 {[%clk 0:00:04.1]} 71... Kf7 {[%clk 0:00:12.2]} 72. Rd7+ {[%clk 0:00:04.5]}
72... Kg6 {[%clk 0:00:12.5]} 73. Re7 {[%clk 0:00:04.5]} 73... Kf5 {[%clk
0:00:12.7]} 74. Rf7+ {[%clk 0:00:04.8]} 74... Kg5 {[%clk 0:00:12.8]} 75. Rd7
{[%clk 0:00:04.3]} 75... Kf5 {[%clk 0:00:12.7]} 76. Rf7+ {[%clk 0:00:03.7]}
76... Ke4 {[%clk 0:00:12.5]} 77. Rf6 {[%clk 0:00:03.6]} 77... Kd5 {[%clk
0:00:12.6]} 78. Kg2 {[%clk 0:00:01.7]} 78... Rxd4 {[%clk 0:00:12.9]} 79. Kxg3
{[%clk 0:00:02.3]} 79... Kxe5 {[%clk 0:00:13.8]} 80. Rf1 {[%clk 0:00:02.5]}
80... Rd3+ {[%clk 0:00:14]} 81. Kf2 {[%clk 0:00:02.5]} 81... Kd4 {[%clk
0:00:14.1]} 82. Ke2 {[%clk 0:00:03]} 82... e5 {[%clk 0:00:15]} 83. Rh1 {[%clk
0:00:02.9]} 83... Re3+ {[%clk 0:00:15.3]} 84. Kd2 {[%clk 0:00:02.9]} 84... Rg3
{[%clk 0:00:16.2]} 85. Rh2 {[%clk 0:00:02.8]} 85... Ra3 {[%clk 0:00:14.6]} 86.
Rh8 {[%clk 0:00:02.8]} 86... Ra2+ {[%clk 0:00:14.4]} 87. Ke1 {[%clk 0:00:03.4]}
87... Ke3 {[%clk 0:00:14.7]} 88. Rh3+ {[%clk 0:00:03.8]} 88... Kd4 {[%clk
0:00:14.8]} 89. Rb3 {[%clk 0:00:04.4]} 89... e4 {[%clk 0:00:14.4]} 90. Rh3
{[%clk 0:00:05]} 90... Ke5 {[%clk 0:00:14.4]} 91. Rb3 {[%clk 0:00:04.8]} 91...
Kf4 {[%clk 0:00:14.6]} 92. Rc3 {[%clk 0:00:05.3]} 92... Rb2 {[%clk 0:00:14.9]}
93. Ra3 {[%clk 0:00:05.3]} 93... Rc2 {[%clk 0:00:15.1]} 94. Rb3 {[%clk
0:00:05.5]} 94... Ra2 {[%clk 0:00:14.5]} 95. Rc3 {[%clk 0:00:05.6]} 95... Rh2
{[%clk 0:00:14.4]} 96. Rb3 {[%clk 0:00:05.7]} 96... Rh1+ {[%clk 0:00:14.8]} 97.
Ke2 {[%clk 0:00:05.8]} 97... Rh2+ {[%clk 0:00:15.7]} 98. Ke1 {[%clk 0:00:06.3]}
98... Ra2 {[%clk 0:00:16.2]} 1/2-1/2